bitfinex/quotes_BTCUSD_20251221
["timestamp","ask_amount","ask_price","bid_price","bid_amount"]
[1766338004175,0.01130735,88438.0,88431.0,0.162261]
[1766338004373,0.14784,88440.0,88431.0,0.162261]
[1766338004734,0.1591471,88440.0,88431.0,0.162261]
[1766338005233,0.01130722,88439.0,88431.0,0.162261]
[1766338005623,0.15914735,88438.0,88425.0,0.14452]
[1766338005816,0.15914735,88438.0,88426.0,0.16281]
[1766338006222,0.14784,88438.0,88426.0,0.17411889]
[1766338006522,0.14784,88438.0,88427.0,0.17411876]
[1766338006869,0.14784,88438.0,88427.0,0.16281]
[1766338007329,0.14784,88438.0,88426.0,0.00568]
[1766338007505,0.01130735,88438.0,88426.0,0.00568]
[1766338007708,0.14784,88434.0,88426.0,0.00568]
[1766338007914,0.14784,88434.0,88417.0,0.05654977]
[1766338008112,0.15914812,88432.0,88419.0,0.00568]
[1766338008351,0.14784,88430.0,88419.0,0.01698978]
[1766338008716,0.14784,88430.0,88419.0,0.00568]
[1766338009146,0.15914837,88430.0,88419.0,0.00568]
[1766338009347,0.1591485,88429.0,88416.0,0.00568]
[1766338009553,0.14784,88427.0,88416.0,0.00568]
[1766338009772,0.14784,88427.0,88415.0,0.0004]
[1766338010376,0.14784,88427.0,88413.0,0.06826321]
[1766338010377,0.14059,88425.0,88413.0,0.01131055]
[1766338010532,0.140191,88425.0,88415.0,0.01131029]
[1766338010737,0.140191,88425.0,88414.0,0.01131042]
[1766338010942,0.140191,88425.0,88412.0,0.01131068]
[1766338011556,0.05096768,88426.0,88410.0,0.21936468]
[1766338011557,0.01130914,88424.0,88410.0,0.17412093]
[1766338011975,0.0113094,88422.0,88409.0,0.0004]
[1766338012177,0.68747059,88430.0,88409.0,0.0004]
[1766338012178,0.00568,88421.0,88411.0,0.0113108]
[1766338012318,0.00568,88420.0,88411.0,0.0113108]
[1766338012982,0.00568,88420.0,88409.0,0.16321]
[1766338013725,0.00568,88420.0,88406.0,0.01699144]
[1766338013726,0.14784,88416.0,88406.0,0.00568]
[1766338014526,0.14784,88416.0,88397.0,0.0565625]
[1766338014527,0.0113126,88397.0,88370.0,0.000999]
[1766338014723,0.03164038,88415.0,88370.0,0.000999]
[1766338014724,0.0056804,88388.0,88370.0,0.00010714]
[1766338014937,0.0056804,88388.0,88376.0,0.01131528]
[1766338015097,0.01131208,88401.0,88371.0,0.16281]
[1766338015098,0.03164038,88415.0,88384.0,0.16281]
[1766338015288,0.03164038,88415.0,88389.0,0.16281]
[1766338015289,0.01131285,88395.0,88389.0,0.16281]
[1766338015468,0.01131375,88388.0,88382.0,0.00568]
[1766338015671,0.01131375,88388.0,88365.0,0.01131669]
[1766338015672,0.00055,88382.0,88375.0,0.00568]
[1766338015894,0.00055,88382.0,88369.0,0.16281]
[1766338015895,0.01131464,88381.0,88370.0,0.00578714]
[1766338016093,0.01131567,88373.0,88370.0,0.00010714]
[1766338016391,0.05657629,88377.0,88370.0,0.00010714]
[1766338016392,0.01131554,88374.0,88370.0,0.00010714]
[1766338016795,0.01131567,88373.0,88370.0,0.00010714]
[1766338017154,0.01131567,88373.0,88363.0,0.14412]
[1766338017155,0.01142305,88370.0,88363.0,0.14412]
[1766338017381,0.01131631,88368.0,88363.0,0.00035754]
[1766338017786,0.0113158,88372.0,88363.0,0.00035754]
[1766338018022,0.03399435,88383.0,88370.0,0.30693]
[1766338018162,0.01131477,88380.0,88363.0,0.30728754]
[1766338018364,0.01131503,88378.0,88365.0,0.14412]
[1766338018561,0.01131464,88381.0,88368.0,0.16281]
[1766338018802,0.01131464,88381.0,88367.0,0.14412]
[1766338018803,0.03399435,88383.0,88372.0,0.16281]
[1766338019014,0.00568,88384.0,88377.0,0.16281]
[1766338019225,0.000549,88377.0,88370.0,0.00568]
[1766338019423,0.000549,88377.0,88371.0,0.14412]
[1766338019628,0.00568,88382.0,88371.0,0.14412]
[1766338020160,0.01699452,88382.0,88371.0,0.14412]
[1766338020307,0.00568,88382.0,88371.0,0.14412]
[1766338020508,0.00568,88382.0,88381.0,0.00252574]
[1766338023664,0.00568,88386.0,88382.0,0.000549]
[1766338024026,0.00568,88386.0,88377.0,0.14412]
[1766338024027,0.00568,88386.0,88385.0,0.00240243]
[1766338024733,0.005131,88386.0,88385.0,0.00240243]
[1766338024936,0.06787562,88397.0,88385.0,0.00240243]
[1766338025144,3.88e-06,88388.0,88385.0,0.17555]
[1766338025410,3.88e-06,88388.0,88378.0,0.00568]
[1766338025411,0.0113117,88404.0,88388.0,0.17555]
[1766338025719,0.22621606,88412.0,88406.0,0.00175523]
[1766338025720,0.0113108,88411.0,88406.0,0.00175523]
[1766338025849,0.01131068,88412.0,88400.0,0.17555]
[1766338026050,0.01131004,88417.0,88410.0,0.00163198]
[1766338026290,0.01131029,88415.0,88402.0,0.17555]
[1766338026490,0.01131004,88417.0,88402.0,0.17555]
[1766338026889,0.01141696,88417.0,88402.0,0.17555]
[1766338027270,0.01141696,88417.0,88403.0,0.16485]
[1766338027435,0.01131017,88416.0,88406.0,0.17555]
[1766338027651,0.00568,88415.0,88406.0,0.17555]
[1766338028280,0.01699029,88415.0,88406.0,0.17555]
[1766338028480,0.00568,88415.0,88405.0,0.16485]
[1766338029975,0.01699029,88415.0,88405.0,0.16485]
[1766338030593,0.00568,88415.0,88405.0,0.16485]
[1766338032080,0.01699029,88415.0,88405.0,0.16485]
[1766338032276,0.00568,88415.0,88405.0,0.16485]
[1766338033857,0.0025975,88415.0,88405.0,0.16485]
[1766338035282,0.01390779,88415.0,88405.0,0.16485]
[1766338035733,0.0025975,88415.0,88405.0,0.16485]
[1766338035944,0.01390779,88415.0,88405.0,0.16485]
[1766338036702,0.01390779,88415.0,88414.0,0.00095993]
[1766338036924,0.0025975,88415.0,88414.0,0.00040993]
[1766338037906,0.01141696,88417.0,88415.0,0.000549]
[1766338037907,0.00010692,88417.0,88415.0,0.000549]
[1766338038155,9.2e-07,88417.0,88415.0,0.000549]
[1766338038347,9.2e-07,88417.0,88413.0,0.17555]
[1766338039395,9.2e-07,88417.0,88410.0,0.16485]
[1766338040688,9.2e-07,88417.0,88404.0,0.00568]
[1766338040689,0.01131096,88417.0,88404.0,0.00568]
[1766338040984,0.01131017,88416.0,88405.0,0.17555]
[1766338041533,0.01131029,88415.0,88405.0,0.17555]
[1766338041972,0.01131017,88416.0,88405.0,0.17555]
[1766338043296,0.01131055,88413.0,88405.0,0.17555]
[1766338043449,0.01131042,88414.0,88407.0,0.0001]
[1766338043795,0.0001,88407.0,88404.0,0.17043]
[1766338044005,0.01131042,88414.0,88404.0,0.17043]
[1766338044378,0.01131042,88414.0,88413.0,0.0004409]
[1766338045055,0.0001051,88413.0,88403.0,0.00568]
[1766338045261,0.01131042,88414.0,88403.0,0.00568]
[1766338045781,0.01131042,88414.0,88405.0,0.00024654]
[1766338046665,0.01131042,88414.0,88400.0,0.01141234]
[1766338046666,0.06786118,88417.0,88400.0,2.34e-06]
[1766338046667,0.01131183,88403.0,88400.0,2.34e-06]
[1766338046821,0.000105,88405.0,88403.0,0.000444]
[1766338047024,0.000105,88405.0,88403.0,4e-06]
[1766338047247,0.00568,88406.0,88397.0,0.17925]
[1766338049679,0.06786588,88410.0,88394.0,0.17925]
[1766338049680,0.00568,88410.0,88394.0,0.17925]
[1766338049829,0.00568,88410.0,88393.0,0.00568]
[1766338049830,0.00568,88410.0,88400.0,0.34557]
[1766338050025,0.01131055,88413.0,88401.0,0.17925]
[1766338050224,0.00568,88412.0,88401.0,0.17925]
[1766338050779,0.01131042,88414.0,88402.0,0.16632]
[1766338050985,0.01131042,88414.0,88403.0,0.17925]
[1766338051165,0.01131055,88413.0,88403.0,0.17925]
[1766338051591,0.01131055,88413.0,88402.0,0.16632]
[1766338054250,0.01131068,88412.0,88402.0,0.16632]
[1766338055365,0.0113108,88411.0,88402.0,0.16632]
[1766338055704,0.01131068,88412.0,88402.0,0.16632]
[1766338056107,0.01131068,88412.0,88399.0,0.00568]
[1766338056108,0.000549,88402.0,88399.0,0.00568]
[1766338056370,0.000549,88402.0,88397.0,0.00024651]
[1766338056599,0.01131196,88402.0,88397.0,0.00024651]
[1766338056993,0.01131247,88398.0,88388.0,0.03398584]
[1766338057128,0.0113126,88397.0,88392.0,0.00568]
[1766338057328,0.01131247,88398.0,88392.0,0.00568]
[1766338057568,0.01131234,88399.0,88392.0,0.00568]
[1766338059300,0.01131247,88398.0,88392.0,0.00568]
[1766338059795,0.01131247,88398.0,88387.0,0.0001]
[1766338059796,0.001099,88392.0,88387.0,0.0001]
[1766338059955,0.001099,88392.0,88387.0,0.16767]
[1766338060169,0.05656107,88401.0,88387.0,0.16767]
[1766338060381,0.01131234,88399.0,88387.0,0.16767]
[1766338061495,0.01131247,88398.0,88387.0,0.16767]
[1766338061671,0.01131234,88399.0,88388.0,0.16757]
[1766338062896,0.01131247,88398.0,88389.0,0.00024655]
[1766338063097,0.01131221,88400.0,88390.0,0.17325]
[1766338064070,0.01131208,88401.0,88390.0,0.17325]
[1766338064272,0.06223893,88404.0,88390.0,0.17325]
[1766338064273,0.01131298,88394.0,88390.0,0.00568]
[1766338064493,0.01131285,88395.0,88390.0,0.005131]
[1766338064698,0.0565662,88392.0,88390.0,0.005131]
[1766338065113,0.01131349,88390.0,88389.0,0.00568]
[1766338065353,0.01131349,88390.0,88389.0,0.00513]
[1766338065561,0.06787944,88392.0,88389.0,0.00513]
[1766338065994,0.06787944,88392.0,88376.0,0.05659528]
[1766338065995,0.05656979,88387.0,88368.0,0.01131631]
[1766338066208,0.05656979,88387.0,88366.0,0.01131656]
[1766338066209,0.00568,88386.0,88370.0,0.18321]
[1766338066424,0.01131477,88380.0,88370.0,0.18321]
[1766338066628,0.01131439,88383.0,88370.0,0.18321]
[1766338067044,0.01131452,88382.0,88370.0,0.18321]
[1766338067474,0.05657551,88378.0,88370.0,0.00568]
[1766338067722,0.05657551,88378.0,88368.0,0.00035754]
[1766338067723,0.03164038,88375.0,88368.0,0.00603754]
[1766338068173,0.01131567,88373.0,88368.0,0.00603754]
[1766338068374,0.01131567,88373.0,88354.0,0.05659041]
[1766338068375,0.01131656,88366.0,88357.0,0.05568]
[1766338068583,0.01131644,88367.0,88357.0,0.055786]
[1766338068790,0.0113158,88372.0,88367.0,0.00055]
[1766338069016,0.01131592,88371.0,88367.0,0.00055]
[1766338069237,0.01131592,88371.0,88357.0,0.055786]
[1766338069663,0.01131605,88370.0,88357.0,0.055786]
[1766338069869,0.01131605,88370.0,88354.0,0.0113181]
[1766338069870,0.00568,88369.0,88354.0,0.0113181]
[1766338070078,0.00568,88369.0,88354.0,0.01140695]
[1766338070313,0.01699618,88369.0,88355.0,0.3451]
[1766338070521,0.00568,88369.0,88355.0,0.35078]
[1766338071136,0.01699618,88369.0,88355.0,0.35078]
[1766338071425,0.01131631,88368.0,88355.0,0.35078]
[1766338071616,0.01131669,88365.0,88355.0,0.35078]
[1766338071824,0.01131631,88368.0,88355.0,0.35078]
[1766338072132,0.01131631,88368.0,88364.0,0.00077057]
[1766338072430,0.01131631,88368.0,88355.0,0.35078]
[1766338072431,0.01131644,88367.0,88355.0,0.35078]
[1766338073377,0.01131631,88368.0,88355.0,0.35078]
[1766338073821,0.01131644,88367.0,88355.0,0.00568]
[1766338074034,0.01131669,88365.0,88355.0,0.00568]
[1766338074339,0.01131695,88363.0,88355.0,0.00568]
[1766338074631,0.01131708,88362.0,88355.0,0.00568]
[1766338074775,0.01131695,88363.0,88355.0,0.00568]
[1766338074976,0.01699695,88363.0,88354.0,8.885e-05]
[1766338075455,0.01131708,88362.0,88354.0,8.885e-05]
[1766338075677,0.00568,88363.0,88354.0,8.885e-05]
[1766338075851,0.005131,88363.0,88355.0,0.16757]
[1766338076058,0.01131695,88366.0,88354.0,0.18893695]
[1766338076059,0.01131695,88366.0,88364.0,0.05658385]
[1766338076222,1.37e-06,88366.0,88365.0,0.16757]
[1766338076619,0.00568,88373.0,88365.0,0.16757]
[1766338076832,0.00568,88373.0,88369.0,0.16757]
[1766338077459,0.01131439,88383.0,88369.0,0.16757]
[1766338077460,0.03399766,88383.0,88369.0,0.16757]
[1766338077691,0.22625028,88398.0,88372.0,0.16757]
[1766338077692,0.00568,88382.0,88372.0,0.16757]
[1766338077917,0.00568,88382.0,88373.0,0.16757]
[1766338078123,0.00568,88381.0,88374.0,0.16757]
[1766338082183,0.07356832,88381.0,88374.0,0.16757]
[1766338082524,0.01699464,88381.0,88373.0,0.17753]
[1766338082814,0.01699464,88381.0,88369.0,0.00568]
[1766338083097,0.00568,88381.0,88369.0,0.00568]
[1766338083672,0.005131,88381.0,88371.0,0.01131592]
[1766338083825,0.005131,88381.0,88372.0,0.17753]
[1766338084178,0.00568,88381.0,88372.0,0.17753]
[1766338084686,0.01699464,88381.0,88372.0,0.17753]
[1766338085802,0.00568,88381.0,88372.0,0.17753]
[1766338085971,0.00568,88381.0,88372.0,0.34403]
[1766338086377,0.00568,88382.0,88374.0,0.16542]
[1766338086577,0.00568,88385.0,88381.0,0.1665]
[1766338087346,0.01131349,88390.0,88381.0,0.1665]
[1766338087347,0.00568,88386.0,88381.0,0.1665]
[1766338087794,0.00568,88386.0,88380.0,0.16542]
[1766338087795,0.01131324,88392.0,88380.0,0.16542]
[1766338088123,0.01131362,88389.0,88380.0,0.16542]
[1766338088508,0.01131375,88388.0,88380.0,0.16542]
[1766338088907,0.01131362,88389.0,88380.0,0.16542]
[1766338089054,0.00568,88390.0,88380.0,0.16542]
[1766338089470,0.00568,88390.0,88377.0,0.1665]
[1766338089471,0.00568,88390.0,88381.0,0.1665]
[1766338089678,0.00568,88390.0,88382.0,0.1665]
[1766338090130,0.00568,88394.0,88388.0,0.16542]
[1766338090332,0.00568,88394.0,88389.0,0.1665]
[1766338093380,0.00244292,88394.0,88389.0,0.1665]
[1766338093679,0.00019293,88394.0,88389.0,0.1665]
[1766338094684,0.00019293,88394.0,88388.0,0.16542]
[1766338094865,0.000549,88389.0,88385.0,0.1665]
[1766338095270,0.0001,88396.0,88385.0,0.1665]
[1766338095478,0.01131311,88393.0,88385.0,0.1665]
[1766338095673,0.01131324,88392.0,88382.0,0.16542]
[1766338095893,0.01131311,88393.0,88382.0,0.16542]
[1766338096097,0.01131324,88392.0,88382.0,0.16542]
[1766338096718,0.01131336,88391.0,88382.0,0.16542]
[1766338096882,0.01131298,88394.0,88382.0,0.16542]
[1766338097076,0.01131311,88393.0,88382.0,0.16542]
[1766338097677,0.01131324,88392.0,88382.0,0.33192]
[1766338098545,0.01131336,88391.0,88382.0,0.33192]
[1766338098858,0.01131349,88390.0,88382.0,0.33192]
[1766338099355,0.01131324,88392.0,88382.0,0.33192]
[1766338099764,0.01131336,88391.0,88382.0,0.33192]
[1766338099970,0.01131349,88390.0,88378.0,0.00568]
[1766338100136,0.01131349,88390.0,88378.0,0.17218]
[1766338100533,0.01131349,88390.0,88379.0,0.1665]
[1766338100731,0.01131362,88389.0,88380.0,0.1665]
[1766338100955,0.01131349,88390.0,88380.0,0.1665]
[1766338102411,0.01131362,88389.0,88380.0,0.1665]
[1766338102592,0.01131362,88389.0,88380.0,0.165951]
[1766338103418,0.01131362,88389.0,88379.0,0.16542]
[1766338103601,0.01131375,88388.0,88378.0,0.00568]
[1766338103791,0.01131362,88389.0,88378.0,0.00568]
[1766338103995,0.01141349,88390.0,88378.0,0.00548]
[1766338104193,0.0001,88390.0,88378.0,0.00548]
[1766338104417,0.01141349,88390.0,88378.0,0.00548]
[1766338104547,0.01131388,88387.0,88378.0,0.00548]
[1766338104749,0.01131388,88387.0,88376.0,0.0001]
[1766338104750,0.00055,88378.0,88376.0,0.0001]
[1766338105000,0.00568,88389.0,88376.0,0.00045723]
[1766338105001,0.01131464,88381.0,88376.0,0.00045723]
[1766338105221,0.01131477,88380.0,88376.0,0.00045723]
[1766338105378,0.01131464,88381.0,88376.0,0.00045723]
[1766338105563,0.01131477,88380.0,88376.0,2.3e-07]
[1766338105990,0.01131464,88381.0,88376.0,2.3e-07]
[1766338106583,0.01699452,88382.0,88376.0,2.3e-07]
[1766338106899,0.01131477,88380.0,88376.0,2.3e-07]
[1766338107117,0.0113149,88379.0,88376.0,2.3e-07]
[1766338107698,0.01131477,88380.0,88376.0,2.3e-07]
[1766338107901,0.0678896,88379.0,88376.0,2.3e-07]
[1766338108077,0.01131439,88383.0,88376.0,2.3e-07]
[1766338108291,0.01131439,88383.0,88379.0,0.001006]
[1766338108492,0.01699426,88384.0,88379.0,0.001006]
[1766338108663,0.01699426,88384.0,88376.0,2.3e-07]
[1766338108864,0.01131439,88383.0,88376.0,2.3e-07]
[1766338109400,0.01131452,88382.0,88376.0,2.3e-07]
[1766338109607,0.01131439,88383.0,88376.0,2.3e-07]
[1766338109969,0.03174038,88390.0,88376.0,2.3e-07]
[1766338110287,0.00568,88389.0,88384.0,0.16196]
[1766338110507,0.00568,88391.0,88384.0,0.16196]
[1766338110685,0.00548,88391.0,88384.0,0.16196]
[1766338111368,0.01679336,88391.0,88384.0,0.16196]
[1766338111770,0.01679336,88391.0,88383.0,0.17056]
[1766338111964,0.000193,88383.0,88376.0,2.3e-07]
[1766338112430,0.01131413,88385.0,88376.0,2.3e-07]
[1766338112597,0.011314,88386.0,88376.0,2.3e-07]
[1766338112796,0.01131426,88384.0,88376.0,2.3e-07]
[1766338113191,0.01699336,88391.0,88384.0,0.000906]
[1766338113390,0.00568,88391.0,88384.0,0.000906]
[1766338113590,0.00568,88391.0,88383.0,0.16196]
[1766338114849,0.00568,88391.0,88381.0,0.17056]
[1766338115071,0.01131311,88393.0,88376.0,0.01131551]
[1766338115072,0.0001,88396.0,88391.0,0.000356]
[1766338115274,0.00568,88394.0,88390.0,0.16097]
[1766338116058,0.005324,88394.0,88390.0,0.16097]
[1766338116505,0.0001,88396.0,88390.0,0.16097]
[1766338116706,0.00578,88396.0,88389.0,0.18601362]
[1766338118404,0.0001,88396.0,88389.0,0.18601362]
[1766338118545,0.00578,88396.0,88389.0,0.18601362]
[1766338119182,0.0001,88396.0,88391.0,0.01131336]
[1766338119345,0.0001,88396.0,88389.0,0.18601362]
[1766338120164,0.0001,88396.0,88389.0,0.1747]
[1766338120374,0.0001,88396.0,88389.0,0.18601362]
[1766338121126,0.0001,88396.0,88389.0,0.1747]
[1766338121281,0.0001,88396.0,88389.0,0.18601362]
[1766338121683,0.0001,88396.0,88389.0,0.1747]
[1766338124590,0.0001,88396.0,88389.0,0.18601362]
[1766338126033,0.0001,88396.0,88389.0,0.1747]
[1766338127037,0.0001,88396.0,88389.0,0.18601362]
[1766338127236,0.0001,88396.0,88389.0,0.1747]
[1766338127638,0.0001,88396.0,88389.0,0.18601362]
[1766338127802,0.0001,88396.0,88389.0,0.1747]
[1766338128005,0.0001,88396.0,88389.0,0.18601362]
[1766338128979,0.0001,88396.0,88389.0,0.1747]
[1766338135689,0.00578,88396.0,88389.0,0.1747]
[1766338137576,0.01131285,88395.0,88384.0,0.0001]
[1766338138005,0.01131285,88395.0,88383.0,0.16087]
[1766338138213,0.01709272,88396.0,88383.0,0.16087]
[1766338138378,0.01709272,88396.0,88383.0,0.18601439]
[1766338138714,0.00578,88396.0,88383.0,0.18570139]
[1766338140031,0.00578,88396.0,88384.0,0.16097]
[1766338140226,0.01709272,88396.0,88384.0,0.16097]
[1766338140636,0.00578,88396.0,88384.0,0.16097]
[1766338141571,0.00578,88396.0,88384.0,0.17228426]
[1766338141770,0.00578,88396.0,88384.0,0.18601426]
[1766338141957,0.00578,88396.0,88385.0,0.16097]
[1766338146930,0.01709272,88396.0,88384.0,0.1747]
[1766338147177,0.01131285,88395.0,88381.0,0.01699464]
[1766338148437,0.01131298,88394.0,88381.0,0.01699464]
[1766338148643,0.0001,88393.0,88381.0,0.01699464]
[1766338148863,0.0001,88393.0,88381.0,0.00568]
[1766338149764,0.0001,88393.0,88381.0,0.01699464]
[1766338149960,0.0001,88393.0,88376.0,2.3e-07]
[1766338150158,0.011314,88386.0,88376.0,2.3e-07]
[1766338150459,0.00568,88386.0,88376.0,2.3e-07]
[1766338150687,0.016994,88386.0,88376.0,2.3e-07]
[1766338150842,0.00568,88386.0,88376.0,2.3e-07]
[1766338151696,0.016994,88386.0,88376.0,2.3e-07]
[1766338152577,0.00568,88386.0,88376.0,2.3e-07]
[1766338153164,0.016994,88386.0,88376.0,2.3e-07]
[1766338153581,0.01131413,88385.0,88376.0,2.3e-07]
[1766338153802,0.016994,88386.0,88376.0,2.3e-07]
[1766338154013,0.01131413,88385.0,88376.0,2.3e-07]
[1766338154554,0.016994,88386.0,88376.0,2.3e-07]
[1766338155645,0.01131413,88385.0,88376.0,2.3e-07]
[1766338155848,0.00568,88394.0,88385.0,0.00055]
[1766338156034,0.00568,88394.0,88386.0,0.16675]
[1766338156393,0.00558,88394.0,88386.0,0.16675]
[1766338156594,0.00558,88394.0,88385.0,0.16597]
[1766338157634,0.01689298,88394.0,88382.0,0.16675]
[1766338158249,0.00558,88394.0,88382.0,0.16675]
[1766338158950,0.01689298,88394.0,88382.0,0.16675]
[1766338159156,0.00558,88394.0,88382.0,0.16675]
[1766338159768,0.00558,88394.0,88382.0,0.17806452]
[1766338159965,0.00558,88394.0,88382.0,0.16675]
[1766338161124,0.00558,88394.0,88382.0,0.17806452]
[1766338162005,0.00558,88394.0,88382.0,0.16675]
[1766338163024,0.01689298,88394.0,88382.0,0.16675]
[1766338163392,0.01689298,88394.0,88384.0,0.0001]
[1766338164006,0.00558,88394.0,88384.0,0.0001]
[1766338166844,0.00568,88393.0,88385.0,0.16366]
[1766338167041,1.5,88395.0,88393.0,0.00035]
[1766338167245,0.00558,88394.0,88393.0,0.00035]
[1766338167480,0.00548,88394.0,88393.0,0.00035]
[1766338167703,0.00548,88394.0,88387.0,0.17497388]
[1766338167844,1.5,88395.0,88387.0,0.16366]
[1766338168047,1.5,88395.0,88384.0,0.06798554]
[1766338168048,0.97378,88395.0,88393.0,0.16366]
[1766338168286,0.77689511,88395.0,88394.0,0.16366]
[1766338168879,0.74310519,88395.0,88394.0,0.16366]
[1766338169199,0.74292518,88395.0,88394.0,0.16366]
[1766338169554,0.73925998,88395.0,88394.0,0.16366]
[1766338169775,0.70720111,88395.0,88394.0,0.16366]
[1766338169966,0.69328077,88395.0,88394.0,0.16366]
[1766338170761,0.66426123,88395.0,88394.0,0.16366]
[1766338171100,0.6520648,88395.0,88394.0,0.16366]
[1766338171309,0.65108649,88395.0,88394.0,0.16366]
[1766338171808,0.62291143,88395.0,88394.0,0.16366]
[1766338171993,0.61712151,88395.0,88394.0,0.16366]
[1766338172175,0.60032151,88395.0,88394.0,0.16366]
[1766338172376,0.57785627,88395.0,88394.0,0.16366]
[1766338173119,0.53757846,88395.0,88391.0,0.01131336]
[1766338174629,0.53757846,88395.0,88389.0,0.16366]
[1766338174789,0.53757846,88395.0,88390.0,0.01131349]
[1766338174995,0.53757846,88395.0,88389.0,0.17497362]
[1766338175248,0.53757846,88395.0,88390.0,0.01131349]
[1766338177359,0.53757846,88395.0,88389.0,0.16366]
[1766338177576,0.000549,88390.0,88388.0,0.16366]
[1766338177776,0.53662879,88395.0,88388.0,0.16366]
[1766338177923,0.53662879,88395.0,88388.0,0.16346]
[1766338179420,0.53662879,88395.0,88389.0,0.17899]
[1766338185095,0.53607979,88395.0,88389.0,0.35996]
[1766338185286,0.53607979,88395.0,88390.0,0.01131349]
[1766338185519,0.53607979,88395.0,88389.0,0.37127362]
[1766338186026,0.53607979,88395.0,88390.0,0.01131349]
[1766338186205,0.53607979,88395.0,88389.0,0.37127362]
[1766338186594,0.53607979,88395.0,88390.0,0.01131349]
[1766338186992,0.53607979,88395.0,88389.0,0.37127362]
[1766338187316,0.53607979,88395.0,88389.0,0.35996]
[1766338187516,0.53607979,88395.0,88387.0,0.00568]
[1766338187694,0.53607979,88395.0,88387.0,0.36564]
[1766338189412,0.54739264,88395.0,88387.0,0.005131]
[1766338189614,0.53607979,88395.0,88387.0,0.005131]
[1766338189850,0.57538979,88395.0,88384.0,0.00578]
[1766338194796,0.53607979,88395.0,88384.0,0.01709426]
[1766338195310,0.53607979,88395.0,88384.0,0.00578]
[1766338195692,0.57342979,88395.0,88384.0,0.00578]
[1766338196163,0.58474264,88395.0,88384.0,0.00578]
[1766338196341,0.57342979,88395.0,88384.0,0.00578]
[1766338197483,0.57342979,88395.0,88384.0,0.01709426]
[1766338197683,0.57342979,88395.0,88384.0,0.00578]
[1766338199760,0.57342979,88395.0,88384.0,0.01709426]
[1766338200376,0.53607979,88395.0,88385.0,0.01131413]
[1766338200607,0.53607979,88395.0,88386.0,0.17899]
[1766338200776,0.53587979,88395.0,88386.0,0.17899]
[1766338200976,0.53587979,88395.0,88386.0,0.190304]
[1766338201176,0.53587979,88395.0,88386.0,0.011314]
[1766338201374,0.53587979,88395.0,88385.0,0.19228413]
[1766338201779,0.53587979,88395.0,88385.0,0.37127413]
[1766338202009,0.53587979,88395.0,88386.0,0.17899]
[1766338202234,0.53587979,88395.0,88389.0,0.17899]
[1766338202463,0.0001,88396.0,88391.0,0.35996]
[1766338204516,0.0001,88396.0,88391.0,0.35941]
[1766338206012,0.0001,88396.0,88386.0,0.00578]
[1766338206219,0.0001,88396.0,88387.0,0.18491]
[1766338206419,0.0001,88396.0,88388.0,0.1938]
[1766338206666,0.0001,88396.0,88389.0,0.18491]
[1766338206968,0.0001,88396.0,88390.0,0.1938]
[1766338207193,0.0001,88396.0,88389.0,0.18491]
[1766338207723,0.0001,88396.0,88389.0,0.37871]
[1766338210242,0.0001,88396.0,88389.0,0.18491]
[1766338210444,0.0001,88396.0,88390.0,0.1938]
[1766338211635,0.05655924,88403.0,88390.0,0.1938]
[1766338211636,0.0002,88404.0,88399.0,0.1938]
[1766338211808,0.005231,88403.0,88393.0,0.1938]
[1766338212006,0.005231,88403.0,88394.0,0.01131298]
[1766338212209,0.005231,88403.0,88393.0,0.20511311]
[1766338212640,0.005231,88403.0,88394.0,0.01141132]
[1766338212813,0.005231,88403.0,88394.0,0.0227243]
[1766338212996,0.005231,88403.0,88394.0,0.01141132]
[1766338215095,0.005231,88403.0,88394.0,0.0227243]
[1766338216166,0.005231,88403.0,88394.0,0.01141132]
[1766338216371,0.005231,88403.0,88394.0,0.0227243]
[1766338217095,0.005231,88403.0,88394.0,0.01141132]
[1766338218255,0.005231,88403.0,88394.0,0.0227243]
[1766338218456,0.005231,88403.0,88394.0,0.20521132]
[1766338218661,0.005231,88403.0,88394.0,0.2165243]
[1766338219122,0.005231,88403.0,88394.0,0.20521132]
[1766338219287,0.005231,88403.0,88395.0,0.01131285]
[1766338219466,0.005231,88403.0,88394.0,0.2165243]
[1766338220425,0.005231,88403.0,88395.0,0.01131285]
[1766338221197,0.005231,88403.0,88396.0,0.01131272]
[1766338222704,0.005231,88403.0,88395.0,0.01131285]
[1766338224699,0.005231,88403.0,88394.0,0.2165243]
[1766338224700,0.000449,88395.0,88394.0,0.01141132]
[1766338225044,0.19106,88402.0,88394.0,0.01121132]
[1766338225455,0.20237196,88402.0,88394.0,0.01121132]
[1766338225998,0.19106,88402.0,88394.0,0.01076232]
[1766338226451,0.20237196,88402.0,88394.0,0.01076232]
[1766338227493,0.19106,88402.0,88394.0,0.01076232]
[1766338228636,0.20237196,88402.0,88394.0,0.01076232]
[1766338229386,0.19106,88402.0,88394.0,0.01076232]
[1766338230219,0.20237196,88402.0,88394.0,0.01076232]
[1766338230924,0.19106,88402.0,88394.0,0.01076232]
[1766338231926,0.20237196,88402.0,88394.0,0.01076232]
[1766338232429,0.19106,88402.0,88394.0,0.01076232]
[1766338232589,0.01131208,88401.0,88394.0,0.01076232]
[1766338232780,0.20237196,88402.0,88394.0,0.01076232]
[1766338232987,0.01131208,88401.0,88394.0,0.01076232]
[1766338233545,0.20237196,88402.0,88394.0,0.01076232]
[1766338233870,0.19106,88402.0,88394.0,0.01076232]
[1766338235297,0.19106,88402.0,88393.0,0.17733]
[1766338236310,0.20237196,88402.0,88393.0,0.17733]
[1766338237266,0.19106,88402.0,88393.0,0.17733]
[1766338241413,0.190511,88402.0,88393.0,0.17733]
[1766338242141,0.190511,88402.0,88393.0,0.18864311]
[1766338242638,0.190511,88402.0,88394.0,0.1757]
[1766338243206,0.190511,88402.0,88394.0,0.18701298]
[1766338243610,0.00588,88404.0,88394.0,0.18701298]
[1766338243815,0.00588,88404.0,88394.0,0.1757]
[1766338244017,0.00588,88404.0,88394.0,0.18701298]
[1766338244414,0.00588,88404.0,88394.0,0.1757]
[1766338249464,0.00588,88404.0,88394.0,0.18701298]
[1766338249686,0.00588,88404.0,88394.0,0.1757]
[1766338250021,0.00533,88404.0,88395.0,0.1757]
[1766338250439,0.00513,88404.0,88395.0,0.1757]
[1766338252792,0.0164417,88404.0,88395.0,0.1757]
[1766338253844,0.01131183,88403.0,88395.0,0.1757]